fUST/lending_fUST_20240705
["ID","MTS","AMOUNT","RATE_DAILY","PERIOD"]
[331161025,1720111851537,-500.0,0.00014246,2]
[331161026,1720111851546,-7776.49,0.00014246,2]
[331161027,1720111851556,-500.0,0.00014246,2]
[331161028,1720111851565,-2141.918123,0.00014246,2]
[331161029,1720111851575,-2141.918123,0.00014246,2]
[331161030,1720111851585,-500.0,0.00014246,2]
[331161031,1720111851594,-231.309,0.0001432,2]
[331161032,1720111851603,-877.0,0.0001432,2]
[331161033,1720111851612,-894.828,0.0001432,2]
[331161034,1720111851622,-151.591,0.0001432,2]
[331161035,1720111851631,-211.403,0.0001432,2]
[331161036,1720111851640,-1000.0,0.00014381,2]
[331161037,1720111851650,-153.0,0.00014413,2]
[331161038,1720111851659,-153.0,0.00014413,2]
[331161039,1720111851668,-1000.0,0.00014425,2]
[331161040,1720111851678,-411.16197245,0.00014454,2]
[331161041,1720111851687,-1000.0,0.00014464,2]
[331161042,1720111851696,-604.27,0.00014499,2]
[331161043,1720111851706,-604.27,0.00014499,2]
[331161044,1720111851715,-604.27,0.00014499,2]
[331161045,1720111851724,-604.27,0.00014499,2]
[331161046,1720111851734,-604.37235719,0.00014499,2]
[331161047,1720111851744,-6918.33,0.00014499,2]
[331161048,1720111851755,-6918.33,0.00014499,2]
[331161049,1720111851764,-6918.33,0.00014499,2]
[331161050,1720111851779,-6918.33,0.00014499,2]
[331161051,1720111851788,-6918.522598,0.00014499,2]
[331161052,1720111851798,-83481.54645762,0.000145,2]
[331161053,1720111851807,-151.0,0.000145,2]
[331161054,1720111851817,-1255.282729,0.000145,2]
[331161055,1720111851826,-1255.282729,0.000145,2]
[331161056,1720111851835,-1110.946963,0.000145,2]
[331161057,1720111851845,-1110.946963,0.000145,2]
[331161058,1720111851857,-380.045789,0.000145,2]
[331161059,1720111851868,-380.045789,0.000145,2]
[331161060,1720111851877,-151.0,0.000145,2]
[331161061,1720111851887,-151.0,0.000145,2]
[331161062,1720111851897,-151.0,0.000145,2]
[331161063,1720111851906,-160.383867,0.000145,2]
[331161064,1720111851916,-160.383867,0.000145,2]
[331161065,1720111851925,-151.0,0.000145,2]
[331161066,1720111851935,-151.0,0.000145,2]
[331161067,1720111851944,-152.38663,0.000145,2]
[331161068,1720111851954,-151.0,0.0001451,2]
[331161069,1720111851963,-236.149144,0.0001451,2]
[331161070,1720111851972,-151.0,0.0001451,2]
[331161071,1720111851982,-151.0,0.0001451,2]
[331161072,1720111852066,-1206.24,0.0001452,2]
[331161073,1720111852076,-962.97,0.0001452,2]
[331161074,1720111852085,-500.0,0.0001452,2]
[331161075,1720111852095,-846.17,0.0001452,2]
[331161076,1720111852104,-722.55,0.0001452,2]
[331161077,1720111852113,-1088.19,0.0001452,2]
[331161078,1720111852122,-500.0,0.0001452,2]
[331161079,1720111852132,-500.0,0.0001452,2]
[331161080,1720111852141,-500.0,0.0001452,2]
[331161081,1720111852150,-500.0,0.0001452,2]
[331161082,1720111852160,-500.0,0.0001452,2]
[331161083,1720111852170,-8296.52,0.0001452,2]
[331161084,1720111852179,-514.9279158,0.0001452,2]
[331161085,1720111852189,-500.0,0.0001452,2]
[331161086,1720111852198,-500.0,0.0001452,2]
[331161087,1720111852207,-3764.85,0.0001452,2]
[331161088,1720111852215,-500.0,0.0001452,2]
[331161089,1720111852225,-500.0,0.0001452,2]
[331161090,1720111852235,-500.0,0.0001452,2]
[331161091,1720111852245,-500.0,0.0001452,2]
[331161092,1720111852254,-500.0,0.0001452,2]
[331161093,1720111852263,-500.0,0.0001452,2]
[331161094,1720111852273,-500.0,0.0001452,2]
[331161095,1720111852283,-691.65,0.0001452,2]
[331161096,1720111852292,-500.0,0.0001452,2]
[331161097,1720111852302,-500.0,0.0001452,2]
[331161098,1720111852311,-500.0,0.0001452,2]
[331161099,1720111852320,-500.0,0.0001452,2]
[331161100,1720111852330,-500.0,0.0001452,2]
[331161101,1720111852339,-500.0,0.0001452,2]
[331161102,1720111852348,-500.0,0.0001452,2]
[331161103,1720111852358,-500.0,0.0001452,2]
[331161104,1720111852367,-500.0,0.0001452,2]
[331161105,1720111852376,-500.0,0.0001452,2]
[331161106,1720111852385,-500.0,0.0001452,2]
[331161107,1720111852394,-154.38954278,0.0001452,2]
[331161108,1720111852404,-500.0,0.0001452,2]
[331161109,1720111852413,-599.7,0.0001452,2]
[331161110,1720111852423,-1611.17,0.0001452,2]
[331161111,1720111852431,-500.0,0.0001452,2]
[331161112,1720111852441,-500.0,0.0001452,2]
[331161113,1720111852450,-500.0,0.0001452,2]
[331161114,1720111852460,-500.0,0.0001452,2]
[331161115,1720111852469,-500.0,0.0001452,2]
[331161116,1720111852479,-541.95,0.0001452,2]
[331161117,1720111852489,-500.0,0.0001452,2]
[331161118,1720111852499,-500.0,0.0001452,2]
[331161119,1720111852509,-500.0,0.0001452,2]
[331161120,1720111852518,-500.0,0.0001452,2]
[331161121,1720111852527,-500.0,0.0001452,2]
[331161122,1720111852537,-500.0,0.0001452,2]
[331161123,1720111852547,-500.0,0.0001452,2]
[331161124,1720111852556,-500.0,0.0001452,2]
[331161125,1720111852565,-2198.82,0.0001452,2]
[331161126,1720111852583,-151.0,0.0001452,2]
[331161127,1720111852603,-500.0,0.0001452,2]
[331161128,1720111852622,-500.0,0.0001452,2]
[331161129,1720111852641,-500.0,0.0001452,2]
[331161130,1720111852664,-500.0,0.0001452,2]
[331161131,1720111852682,-1018.96,0.0001452,2]
[331161132,1720111852701,-500.0,0.0001452,2]
[331161133,1720111852716,-500.0,0.0001452,2]
[331161134,1720111852732,-500.0,0.0001452,2]
[331161135,1720111852752,-500.0,0.0001452,2]
[331161136,1720111852775,-151.0,0.0001452,2]
[331161137,1720111852789,-781.13,0.0001452,2]
[331161138,1720111852805,-500.0,0.0001452,2]
[331161139,1720111852821,-1122.93,0.0001452,2]
[331161140,1720111852838,-500.0,0.0001452,2]
[331161141,1720111852852,-151.0,0.0001452,2]
[331161142,1720111852868,-500.0,0.0001452,2]
[331161143,1720111852883,-500.0,0.0001452,2]
[331161144,1720111852898,-500.0,0.0001452,2]
[331161145,1720111852911,-500.0,0.0001452,2]
[331161146,1720111852927,-500.0,0.0001452,2]
[331161147,1720111852941,-500.0,0.0001452,2]
[331161148,1720111852955,-151.0,0.0001452,2]
[331161149,1720111852971,-500.0,0.0001452,2]
[331161150,1720111852985,-1330.495095,0.0001452,2]
[331161151,1720111853005,-273.908754,0.0001452,2]
[331161152,1720111853019,-1564.47,0.0001452,2]
[331161153,1720111853034,-500.0,0.0001452,2]
[331161154,1720111853048,-1330.495095,0.0001452,2]
[331161155,1720111853063,-500.0,0.0001452,2]
[331161156,1720111853078,-230.61460439,0.0001452,2]
[331161157,1720111853093,-2030.75,0.0001452,2]
[331161158,1720111853107,-151.0,0.0001452,2]
[331161159,1720111853122,-500.0,0.0001452,2]
[331161160,1720111853135,-500.0,0.0001452,2]
[331161161,1720111853150,-500.0,0.0001452,2]
[331161162,1720111853165,-151.0,0.0001452,2]
[331161163,1720111853180,-500.0,0.0001452,2]
[331161164,1720111853194,-500.0,0.0001452,2]
[331161165,1720111853207,-262.99462,0.0001452,2]
[331161166,1720111853216,-500.0,0.0001452,2]
[331161167,1720111853225,-500.0,0.0001452,2]
[331161168,1720111853235,-151.0,0.0001452,2]
[331161169,1720111853245,-500.0,0.0001452,2]
[331161170,1720111853254,-151.0,0.0001452,2]
[331161171,1720111853264,-500.0,0.0001452,2]
[331161172,1720111853273,-500.0,0.0001452,2]
[331161173,1720111853283,-500.0,0.0001452,2]
[331161174,1720111853293,-500.0,0.0001452,2]
[331161175,1720111853302,-500.0,0.0001452,2]
[331161176,1720111853311,-12363.61,0.0001452,2]
[331161177,1720111853321,-500.0,0.0001452,2]
[331161178,1720111853330,-500.0,0.0001452,2]
[331161179,1720111853498,-500.0,0.0001452,2]
[331161180,1720111853518,-500.0,0.0001452,2]
[331161181,1720111853530,-500.0,0.0001452,2]
[331161182,1720111853539,-500.0,0.0001452,2]
[331161183,1720111853548,-1157.56,0.0001452,2]
[331161184,1720111853557,-1042.28,0.0001452,2]
[331161185,1720111853566,-500.0,0.0001452,2]
[331161186,1720111853575,-742.0,0.0001452,2]
[331161187,1720111853584,-500.0,0.0001452,2]
[331161188,1720111853593,-262.855374,0.0001452,2]
[331161189,1720111853602,-625.22,0.0001452,2]
[331161190,1720111853611,-500.0,0.0001452,2]
[331161191,1720111853621,-262.855374,0.0001452,2]
[331161192,1720111853630,-500.0,0.0001452,2]
[331161193,1720111853639,-1044.22,0.0001452,2]
[331161194,1720111853647,-500.0,0.0001452,2]
[331161195,1720111853656,-151.0,0.0001452,2]
[331161196,1720111853665,-1077.61,0.0001452,2]
[331161197,1720111853674,-500.0,0.0001452,2]
[331161198,1720111853683,-500.0,0.0001452,2]
[331161199,1720111853692,-500.0,0.0001452,2]
[331161200,1720111853701,-500.0,0.0001452,2]
[331161201,1720111853710,-500.0,0.0001452,2]
[331161202,1720111853719,-500.0,0.0001452,2]
[331161203,1720111853728,-500.0,0.0001452,2]
[331161204,1720111853738,-500.0,0.0001452,2]
[331161205,1720111853751,-500.0,0.0001452,2]
[331161206,1720111853760,-500.0,0.0001452,2]
[331161207,1720111853772,-500.0,0.0001452,2]
[331161208,1720111853782,-507.81915388,0.0001452,2]
[331161209,1720111853792,-500.0,0.0001452,2]
[331161210,1720111853802,-500.0,0.0001452,2]
[331161211,1720111853811,-500.0,0.0001452,2]
[331161212,1720111853821,-500.0,0.0001452,2]
[331161213,1720111853830,-500.0,0.0001452,2]
[331161214,1720111853839,-500.0,0.0001452,2]
[331161215,1720111853850,-500.0,0.0001452,2]
[331161216,1720111853860,-500.0,0.0001452,2]
[331161217,1720111853869,-976.087188,0.0001452,2]
[331161218,1720111853879,-500.0,0.0001452,2]
[331161219,1720111853888,-569.97973244,0.0001452,2]
[331161220,1720111853897,-976.087188,0.0001452,2]
[331161221,1720111853907,-500.0,0.0001452,2]
[331161222,1720111853915,-500.0,0.0001452,2]
[331161223,1720111853924,-500.0,0.0001452,2]
[331161224,1720111853934,-500.0,0.0001452,2]
[331161225,1720111853943,-1530.62,0.0001452,2]
[331161226,1720111853953,-547.01,0.0001452,2]
[331161227,1720111853963,-500.0,0.0001452,2]
[331161228,1720111853972,-500.0,0.0001452,2]
[331161229,1720111853981,-500.0,0.0001452,2]
[331161230,1720111853990,-1040.2,0.0001452,2]
[331161231,1720111854006,-500.0,0.0001452,2]
[331161232,1720111854016,-151.0,0.0001452,2]
[331161233,1720111854027,-591.38,0.0001452,2]
[331161234,1720111854036,-500.0,0.0001452,2]
[331161235,1720111854046,-12654.94,0.0001452,2]
[331161236,1720111854056,-1128.2,0.0001452,2]
[331161237,1720111854066,-151.0,0.0001452,2]
[331161238,1720111854076,-500.0,0.0001452,2]
[331161239,1720111854085,-1107.55,0.0001452,2]
[331161240,1720111854094,-223.98782613,0.0001452,2]
[331161241,1720111854104,-500.0,0.0001452,2]
[331161242,1720111854113,-500.0,0.0001452,2]
[331161243,1720111854124,-500.0,0.0001452,2]
[331161244,1720111854134,-500.0,0.0001452,2]
[331161245,1720111854143,-820.84,0.0001452,2]
[331161246,1720111854152,-500.0,0.0001452,2]
[331161247,1720111854162,-500.0,0.0001452,2]
[331161248,1720111854171,-730.93,0.0001452,2]
[331161249,1720111854181,-500.0,0.0001452,2]
[331161250,1720111854190,-500.0,0.0001452,2]
[331161251,1720111854200,-500.0,0.0001452,2]
[331161252,1720111854210,-500.0,0.0001452,2]
[331161253,1720111854219,-500.0,0.0001452,2]
[331161254,1720111854229,-551.19,0.0001452,2]
[331161255,1720111854239,-500.0,0.0001452,2]
[331161256,1720111854253,-1712.0,0.0001452,2]
[331161257,1720111854264,-500.0,0.0001452,2]
[331161258,1720111854273,-737.52,0.0001452,2]
[331161259,1720111854283,-500.0,0.0001452,2]
[331161260,1720111854292,-500.0,0.0001452,2]
[331161261,1720111854302,-3301.17,0.0001452,2]
[331161262,1720111854311,-500.0,0.0001452,2]
[331161263,1720111854321,-909.9,0.0001452,2]
[331161264,1720111854330,-500.0,0.0001452,2]
[331161265,1720111854339,-500.0,0.0001452,2]
[331161266,1720111854348,-500.0,0.0001452,2]
[331161267,1720111854358,-151.0,0.0001452,2]
[331161268,1720111854367,-1255.282729,0.0001452,2]
[331161269,1720111854377,-500.0,0.0001452,2]
[331161270,1720111854386,-500.0,0.0001452,2]
[331161271,1720111854395,-500.0,0.0001452,2]
[331161272,1720111854405,-790.85,0.0001452,2]
[331161273,1720111854414,-1255.282729,0.0001452,2]
[331161274,1720111854423,-500.0,0.0001452,2]
[331161275,1720111854433,-4226.55,0.0001452,2]
[331161276,1720111854443,-1110.946963,0.0001452,2]
[331161277,1720111854452,-1373.4,0.0001452,2]
[331161278,1720111854461,-1110.946963,0.0001452,2]
[331161279,1720111854470,-2265.01,0.0001452,2]
[331161280,1720111854480,-500.0,0.0001452,2]
[331161281,1720111854489,-380.045789,0.0001452,2]
[331161282,1720111854500,-500.0,0.0001452,2]
[331161283,1720111854510,-500.0,0.0001452,2]
[331161284,1720111854520,-380.045789,0.0001452,2]
[331161285,1720111854530,-610.89,0.0001452,2]
[331161286,1720111854539,-500.0,0.0001452,2]
[331161287,1720111854548,-500.0,0.0001452,2]
[331161288,1720111854557,-500.0,0.0001452,2]
[331161289,1720111854567,-500.0,0.0001452,2]
[331161290,1720111854576,-500.0,0.0001452,2]
[331161291,1720111854585,-500.0,0.0001452,2]
[331161292,1720111854595,-500.0,0.0001452,2]
[331161293,1720111854604,-1703.24,0.0001452,2]
[331161294,1720111854614,-1501.58,0.0001452,2]
[331161295,1720111854623,-227.28873185,0.0001452,2]
[331161296,1720111854632,-500.0,0.0001452,2]
[331161297,1720111854642,-151.0,0.0001452,2]
[331161298,1720111854651,-500.0,0.0001452,2]
[331161299,1720111854660,-500.0,0.0001452,2]
[331161300,1720111854669,-151.0,0.0001452,2]
[331161301,1720111854679,-160.383867,0.0001452,2]
[331161302,1720111854688,-500.0,0.0001452,2]
[331161303,1720111854697,-160.383867,0.0001452,2]
[331161304,1720111854706,-7558.61,0.0001452,2]
[331161305,1720111854715,-500.0,0.0001452,2]
[331161306,1720111854725,-500.0,0.0001452,2]
[331161307,1720111854734,-151.0,0.0001452,2]
[331161308,1720111854744,-500.0,0.0001452,2]
[331161309,1720111854753,-151.0,0.0001452,2]
[331161310,1720111854766,-500.0,0.0001452,2]
[331161311,1720111854776,-151.0,0.0001452,2]
[331161312,1720111854785,-151.0,0.0001452,2]
[331161313,1720111854796,-628.13,0.0001452,2]
[331161314,1720111854804,-1442.91,0.0001452,2]
[331161315,1720111854814,-500.0,0.0001452,2]
[331161316,1720111854823,-500.0,0.0001452,2]
[331161317,1720111854833,-580.16,0.0001452,2]
[331161318,1720111854843,-1175.56,0.0001452,2]
[331161319,1720111854852,-500.0,0.0001452,2]
[331161320,1720111854862,-500.0,0.0001452,2]
[331161321,1720111854872,-904.07,0.0001452,2]
[331161322,1720111854881,-500.0,0.0001452,2]
[331161323,1720111854891,-500.0,0.0001452,2]
[331161324,1720111854900,-500.0,0.0001452,2]
[331161325,1720111854910,-500.0,0.0001452,2]
[331161326,1720111854920,-4335.35,0.0001452,2]
[331161327,1720111854929,-500.0,0.0001452,2]
[331161328,1720111854938,-500.0,0.0001452,2]
[331161329,1720111854947,-2573.145769,0.0001452,2]
[331161330,1720111854957,-3421.741012,0.0001452,2]
[331161331,1720111854967,-500.0,0.0001452,2]
[331161332,1720111854976,-500.0,0.0001452,2]
[331161333,1720111854986,-3421.741012,0.0001452,2]
[331161334,1720111854996,-2573.145769,0.0001452,2]
[331161335,1720111855008,-500.0,0.0001452,2]
[331161336,1720111855018,-602.01,0.0001452,2]
[331161337,1720111855028,-345.803772,0.0001452,2]
[331161338,1720111855038,-534.88,0.0001452,2]
[331161339,1720111855047,-500.0,0.0001452,2]
[331161340,1720111855057,-500.0,0.0001452,2]
[331161341,1720111855066,-345.803772,0.0001452,2]
[331161342,1720111855075,-500.0,0.0001452,2]
[331161343,1720111855084,-500.0,0.0001452,2]
[331161344,1720111855094,-500.0,0.0001452,2]
[331161345,1720111855103,-27744.77,0.0001452,2]
[331161346,1720111855112,-500.0,0.0001452,2]
[331161347,1720111855121,-8032.402223,0.0001452,2]
[331161348,1720111855131,-500.0,0.0001452,2]
[331161349,1720111855140,-500.0,0.0001452,2]
[331161350,1720111855149,-8032.402223,0.0001452,2]
[331161351,1720111855158,-500.0,0.0001452,2]
[331161352,1720111855167,-553.82,0.0001452,2]
[331161353,1720111855176,-897.098697,0.0001452,2]
[331161354,1720111855186,-676.174698,0.0001452,2]
[331161355,1720111855195,-897.098697,0.0001452,2]
[331161356,1720111855204,-500.0,0.0001452,2]
[331161357,1720111855214,-676.174698,0.0001452,2]
[331161358,1720111855223,-500.0,0.0001452,2]
[331161359,1720111855232,-506.36701907,0.0001452,2]
[331161360,1720111855242,-2916.21,0.0001452,2]
[331161361,1720111855251,-500.0,0.0001452,2]
[331161362,1720111855260,-500.0,0.0001452,2]
[331161363,1720111855269,-1759.87,0.0001452,2]
[331161364,1720111855279,-500.0,0.0001452,2]
[331161365,1720111855288,-500.0,0.0001452,2]
[331161366,1720111855297,-1048.66,0.0001452,2]
[331161367,1720111855306,-500.0,0.0001452,2]
[331161368,1720111855316,-4910.82,0.0001452,2]
[331161369,1720111855325,-500.0,0.0001452,2]
[331161370,1720111855334,-1929.35,0.0001452,2]
[331161371,1720111855344,-500.0,0.0001452,2]
[331161372,1720111855354,-500.0,0.0001452,2]
[331161373,1720111855363,-8786.94,0.0001452,2]
[331161374,1720111855373,-500.0,0.0001452,2]
[331161375,1720111855383,-500.0,0.0001452,2]
[331161376,1720111855392,-2141.918123,0.0001452,2]
[331161377,1720111855401,-7776.49,0.0001452,2]
[331161378,1720111855411,-500.0,0.0001452,2]
[331161379,1720111855420,-2141.918123,0.0001452,2]
[331161380,1720111855429,-500.0,0.0001452,2]
[331161381,1720111855438,-1000.0,0.00014555,2]
[331161382,1720111855447,-1000.0,0.0001459,2]
[331161383,1720111855457,-1000.0,0.00014599,2]
[331161384,1720111855466,-1000.0,0.00014603,2]
[331161385,1720111855476,-1000.0,0.00014622,2]
[331161386,1720111855486,-150.0,0.00014648,2]
[331161387,1720111855497,-587.0,0.00014664,2]
[331161388,1720111855506,-1000.0,0.0001473,2]
[331161389,1720111855515,-1286.25239983,0.00014794,2]
[331161390,1720111855524,-155.0,0.00014794,2]
[331161391,1720111855533,-181.84215111,0.00014794,2]
[331161392,1720111855542,-1206.24,0.00014794,2]
[331161393,1720111855551,-962.97,0.00014794,2]
[331161394,1720111855561,-500.0,0.00014794,2]
[331161395,1720111855570,-846.17,0.00014794,2]
[331161396,1720111855580,-722.55,0.00014794,2]
[331161397,1720111855589,-1088.19,0.00014794,2]
[331161398,1720111855598,-500.0,0.00014794,2]
[331161399,1720111855608,-500.0,0.00014794,2]
[331161400,1720111855618,-500.0,0.00014794,2]
[331161401,1720111855627,-500.0,0.00014794,2]
[331161402,1720111855636,-500.0,0.00014794,2]
[331161403,1720111855646,-8296.52,0.00014794,2]
[331161404,1720111855654,-500.0,0.00014794,2]
[331161405,1720111855664,-500.0,0.00014794,2]
[331161406,1720111855673,-3764.85,0.00014794,2]
[331161407,1720111855683,-500.0,0.00014794,2]
[331161408,1720111855692,-500.0,0.00014794,2]
[331161409,1720111855702,-500.0,0.00014794,2]
[331161410,1720111855711,-500.0,0.00014794,2]
[331161411,1720111855721,-691.65,0.00014794,2]
[331161412,1720111855730,-507.48818672,0.00014794,2]
[331161413,1720111855739,-500.0,0.00014794,2]
[331161414,1720111855749,-589.54425896,0.00014794,2]
[331161415,1720111855764,-500.0,0.00014794,2]
[331161416,1720111855774,-500.0,0.00014794,2]
[331161417,1720111855784,-550.78480891,0.00014794,2]
[331161418,1720111855794,-159.244579,0.00014794,2]
[331161419,1720111855805,-500.0,0.00014794,2]
[331161420,1720111855814,-301.73825297,0.00014794,2]
[331161421,1720111855824,-599.7,0.00014794,2]
[331161422,1720111855834,-1611.17,0.00014794,2]
[331161423,1720111855844,-500.0,0.00014794,2]
[331161424,1720111855856,-500.0,0.00014794,2]
[331161425,1720111855866,-500.0,0.00014794,2]
[331161426,1720111855875,-541.95,0.00014794,2]
[331161427,1720111855885,-500.0,0.00014794,2]
[331161428,1720111855894,-500.0,0.00014794,2]
[331161429,1720111855903,-500.0,0.00014794,2]
[331161430,1720111855912,-500.0,0.00014794,2]
[331161431,1720111855922,-500.0,0.00014794,2]
[331161432,1720111855931,-500.0,0.00014794,2]
[331161433,1720111855940,-2198.82,0.00014794,2]
[331161434,1720111855949,-151.0,0.00014794,2]
[331161435,1720111855958,-500.0,0.00014794,2]
[331161436,1720111855968,-561.2071717,0.00014794,2]
[331161437,1720111855977,-262.79055705,0.00014794,2]
[331161438,1720111855987,-418.19524978,0.00014794,2]
[331161439,1720111856000,-1018.96,0.00014794,2]
[331161440,1720111856010,-509.99978689,0.00014794,2]
[331161441,1720111856122,-500.0,0.00014794,2]
[331161442,1720111856132,-500.0,0.00014794,2]
[331161443,1720111856141,-500.0,0.00014794,2]
[331161444,1720111856151,-206.449793,0.00014794,2]
[331161445,1720111856160,-206.449793,0.00014794,2]
[331161446,1720111856170,-151.0,0.00014794,2]
[331161447,1720111856179,-781.13,0.00014794,2]
[331161448,1720111856188,-362.53857526,0.00014794,2]
[331161449,1720111856198,-1122.93,0.00014794,2]
[331161450,1720111856208,-500.0,0.00014794,2]
[331161451,1720111856218,-151.0,0.00014794,2]
[331161452,1720111856227,-500.0,0.00014794,2]
[331161453,1720111856237,-500.0,0.00014794,2]
[331161454,1720111856247,-500.0,0.00014794,2]
[331161455,1720111856256,-500.0,0.00014794,2]
[331161456,1720111856265,-500.0,0.00014794,2]
[331161457,1720111856275,-500.0,0.00014794,2]
[331161458,1720111856284,-151.0,0.00014794,2]
[331161459,1720111856293,-500.0,0.00014794,2]
[331161460,1720111856302,-1330.495095,0.00014794,2]
[331161461,1720111856314,-1564.47,0.00014794,2]
[331161462,1720111856323,-500.0,0.00014794,2]
[331161463,1720111856332,-1330.495095,0.00014794,2]
[331161464,1720111856342,-500.0,0.00014794,2]
[331161465,1720111856352,-2030.75,0.00014794,2]
[331161466,1720111856362,-173.48049,0.00014794,2]
[331161467,1720111856372,-500.0,0.00014794,2]
[331161468,1720111856381,-500.0,0.00014794,2]
[331161469,1720111856391,-501.75611258,0.00014794,2]
[331161470,1720111856400,-151.0,0.00014794,2]
[331161471,1720111856409,-500.0,0.00014794,2]
[331161472,1720111856419,-530.73782236,0.00014794,2]
[331161473,1720111856429,-500.0,0.00014794,2]
[331161474,1720111856438,-500.0,0.00014794,2]
[331161475,1720111856447,-151.0,0.00014794,2]
[331161476,1720111856457,-500.0,0.00014794,2]
[331161477,1720111856466,-151.0,0.00014794,2]
[331161478,1720111856476,-500.0,0.00014794,2]
[331161479,1720111856486,-500.0,0.00014794,2]
[331161480,1720111856498,-507.28663487,0.00014794,2]
[331161481,1720111856507,-500.0,0.00014794,2]
[331161482,1720111856517,-500.0,0.00014794,2]
[331161483,1720111856526,-12363.61,0.00014794,2]
[331161484,1720111856535,-500.0,0.00014794,2]
[331161485,1720111856545,-500.0,0.00014794,2]
[331161486,1720111856555,-500.0,0.00014794,2]
[331161487,1720111856564,-500.0,0.00014794,2]
[331161488,1720111856574,-500.0,0.00014794,2]
[331161489,1720111856583,-1157.56,0.00014794,2]
[331161490,1720111856592,-1042.28,0.00014794,2]
[331161491,1720111856601,-742.0,0.00014794,2]
[331161492,1720111856611,-507.69000949,0.00014794,2]
[331161493,1720111856621,-262.855374,0.00014794,2]
[331161494,1720111856630,-625.22,0.00014794,2]
[331161495,1720111856640,-500.0,0.00014794,2]
[331161496,1720111856649,-262.855374,0.00014794,2]
[331161497,1720111856658,-500.0,0.00014794,2]
[331161498,1720111856668,-1044.22,0.00014794,2]
[331161499,1720111856677,-500.0,0.00014794,2]
[331161500,1720111856686,-151.0,0.00014794,2]
[331161501,1720111856695,-1077.61,0.00014794,2]
[331161502,1720111856705,-500.0,0.00014794,2]
[331161503,1720111856713,-500.0,0.00014794,2]
[331161504,1720111856723,-500.0,0.00014794,2]
[331161505,1720111856733,-500.0,0.00014794,2]
[331161506,1720111856742,-500.0,0.00014794,2]
[331161507,1720111856751,-500.0,0.00014794,2]
[331161508,1720111856760,-500.0,0.00014794,2]
[331161509,1720111856769,-500.0,0.00014794,2]
[331161510,1720111856783,-506.44,0.00014794,2]
[331161511,1720111856792,-500.0,0.00014794,2]
[331161512,1720111856801,-500.0,0.00014794,2]
[331161513,1720111856810,-500.0,0.00014794,2]
[331161514,1720111856821,-500.0,0.00014794,2]
[331161515,1720111856830,-500.0,0.00014794,2]
[331161516,1720111856839,-500.0,0.00014794,2]
[331161517,1720111856849,-500.0,0.00014794,2]
[331161518,1720111856860,-976.087188,0.00014794,2]
[331161519,1720111856869,-500.0,0.00014794,2]
[331161520,1720111856878,-976.087188,0.00014794,2]
[331161521,1720111856887,-500.0,0.00014794,2]
[331161522,1720111856896,-500.0,0.00014794,2]
[331161523,1720111856905,-500.0,0.00014794,2]
[331161524,1720111856915,-491.26112407,0.00014794,2]